fUSD/lending_fUSD_20240407
["ID","MTS","AMOUNT","RATE_DAILY","PERIOD"]
[321799308,1712526632869,-164.9,0.0001981,2]
[321799309,1712526632879,-1000.0,0.00019834,2]
[321799310,1712526632888,-3371.01446939,0.00019932,2]
[321799311,1712526632898,-263.09163061,0.00019933,2]
[321799312,1712526632907,-1289.54111803,0.00019935,2]
[321799313,1712526632917,-1725.75855417,0.00019935,2]
[321799314,1712526632926,-2500.0,0.0002,2]
[321799315,1712526632935,-1743.70839054,0.0002,2]
[321799316,1712526632944,-1505.06418606,0.0002,2]
[321799317,1712526632953,-237.944487,0.0002,2]
[321799318,1712526632962,-454.87,0.00020144,2]
[321799319,1712526632972,-795.97854437,0.00020217,2]
[321799320,1712526632981,-2000.75733526,0.00020217,2]
[321799321,1712526632991,-162.33,0.00020257,2]
[321799322,1712526633000,-150.0,0.000205,2]
[321799323,1712526633009,-484.13,0.00020508,2]
[321799324,1712526633019,-541.0,0.0002052,2]
[321799325,1712526633028,-576.0,0.0002052,2]
[321799326,1712526633037,-1590.96,0.00020645,2]
[321799327,1712526633046,-169.69442563,0.00020686,2]
[321799328,1712526633056,-154.37103609,0.00020686,2]
[321799329,1712526633065,-157.14756917,0.00020686,2]
[321799330,1712526633074,-26597.6329,0.00020686,2]
[321799331,1712526633083,-1237.54611107,0.00020743,2]
[321799332,1712526633093,-200.24445717,0.00020786,2]
[321799333,1712526633102,-4178.9773,0.00020786,2]
[321799334,1712526633111,-3689.6838,0.00020786,2]
[321799335,1712526633122,-245000.0,0.00020786,2]
[321799336,1712526633133,-40662.4485,0.00020786,2]
[321799337,1712526633142,-2430.87798,0.0002079,2]
[321799338,1712526633152,-2430.87798,0.0002082,2]
[321799339,1712526633163,-237.944487,0.00020822,2]
[321799340,1712526633173,-795.97854437,0.00020876,2]
[321799341,1712526633183,-2000.75733526,0.00020876,2]
[321799342,1712526633193,-165.28213822,0.00020897,2]
[321799343,1712526633203,-165.2821382,0.00020898,2]
[321799344,1712526633212,-165.2821382,0.00020899,2]
[321799345,1712526633222,-165.2821382,0.00020899,2]
[321799346,1712526633232,-165.2821382,0.000209,2]
[321799347,1712526633241,-178.52657089,0.000209,2]
[321799348,1712526633250,-352.93440632,0.000209,2]
[321799349,1712526633260,-2430.87798,0.000209,2]
[321799350,1712526633270,-248.3962685,0.000209,2]
[321799351,1712526633279,-167.47271617,0.000209,2]
[321799352,1712526633288,-157.040806,0.00020908,2]
[321799353,1712526633297,-157.040806,0.00020908,2]
[321799354,1712526633306,-157.040806,0.00020908,2]
[321799355,1712526633315,-157.040806,0.00020908,2]
[321799356,1712526633324,-157.040806,0.00020908,2]
[321799357,1712526633333,-157.040806,0.00020908,2]
[321799358,1712526633343,-157.040806,0.00020908,2]
[321799359,1712526633353,-157.040806,0.00020908,2]
[321799360,1712526633362,-157.040806,0.00020908,2]
[321799361,1712526633372,-157.040806,0.00020908,2]
[321799362,1712526633382,-157.040806,0.00020908,2]
[321799363,1712526633393,-157.040806,0.00020908,2]
[321799364,1712526633403,-450.22817949,0.00020965,2]
[321799365,1712526633412,-425.50779126,0.00020974,2]
[321799366,1712526633421,-2430.87799,0.0002098,2]
[321799367,1712526633431,-409.13285857,0.00020984,2]
[321799368,1712526633440,-1219.34609812,0.00020984,2]
[321799369,1712526633449,-321.6957419,0.00020984,2]
[321799370,1712526633459,-200.47564953,0.00020984,2]
[321799371,1712526633468,-735.98049015,0.00020984,2]
[321799372,1712526633477,-324.15162815,0.00020984,2]
[321799373,1712526633487,-801.65589439,0.00020997,2]
[321799374,1712526633497,-301.81309237,0.00020997,2]
[321799375,1712526633506,-155.629,0.00020998,2]
[321799376,1712526633515,-232.55765196,0.00020998,2]
[321799377,1712526633526,-640.08300789,0.00020998,2]
[321799378,1712526633535,-6205.10762654,0.00020998,2]
[321799379,1712526633544,-624.05493274,0.00020998,2]
[321799380,1712526633553,-1060.5528907,0.00020998,2]
[321799381,1712526633563,-26503.52806336,0.00020999,2]
[321799446,1712526637867,-0.10552008,0.00020999,2]
[321799467,1712526638049,-13.9398316,0.00020999,2]
[321799544,1712526638787,-451.55806917,0.00020999,2]
[321799554,1712526638879,-22302.59750021,0.00020999,2]
[321799575,1712526639638,-310.74183003,0.00020999,2]
[321799592,1712526639821,-447.41500004,0.00020999,2]
[321799593,1712526642643,-25788.21562511,0.00020999,2]
[321799594,1712526642767,-17.30508681,0.00020999,2]
[321799595,1712526643038,-10386.48837239,0.00020999,2]
[321799596,1712526643054,-1049.67887199,0.00020999,2]
[321799597,1712526643065,-3168.82305653,0.00020999,2]
[321799607,1712526645739,-2766.45344518,0.00020999,2]
[321799608,1712526645797,-2411.98162898,0.00020999,2]
[321799609,1712526646044,-16.775,0.00020999,2]
[321799610,1712526646247,-6546.89426232,0.00020999,2]
[321799611,1712526686768,601.21642257,0.00018,2]
[321799612,1712526699006,4302.91906703,0.00011,2]
[321799613,1712526760724,150.0,0.00018,2]
[321799614,1712526760745,2828.61963039,0.00018,2]
[321799615,1712526772374,243.50617368,0.00016798,2]
[321799632,1712527378145,411.51,0.00017816,2]
[321799634,1712527534106,-309.38342936,0.00018241,2]
[321799635,1712527534128,-1648.3787,0.00018706,2]
[321799636,1712527534147,-300.0,0.00018706,2]
[321799637,1712527534166,-1750.0,0.00019,3]
[321799638,1712527534187,-1011.91685372,0.000194,2]
[321799639,1712527534206,-2986.32950209,0.000194,2]
[321799640,1712527534229,-1471.4,0.0001961,2]
[321799641,1712527534252,-83.50222493,0.00019647,2]
[321799644,1712527547616,809.74121013,0.0003,28]
[321799645,1712527630099,-1290.38214143,0.00019647,2]
[321799653,1712527758093,-153.21567847,0.00019547,2]
[321799654,1712527758112,-983.949043,0.00019548,2]
[321799655,1712527758133,-5854.8826191,0.00019647,2]
[321799664,1712527832353,-1085.59301454,0.00019647,2]
[321799665,1712527832364,-150.0,0.00019676,2]
[321799666,1712527832373,-1000.0,0.00019746,2]
[321799667,1712527832382,-4193.38,0.00019808,2]
[321799668,1712527832392,-76.26167992,0.00019819,2]
[321799669,1712527832463,-99.01832008,0.00019819,2]
[321799670,1712527832473,-153.21567846,0.00019848,2]
[321799671,1712527832482,-1264.40619677,0.00019948,2]
[321799672,1712527832492,-7982.75188371,0.00019999,2]
[321799699,1712527837726,-4591.84650987,0.00019999,2]
[321799701,1712527837736,-1743.70839054,0.0002,2]
[321799703,1712527837745,-305.19,0.0002008,2]
[321799705,1712527837755,-499.99,0.0002008,2]
[321799707,1712527837764,-411.51,0.0002008,2]
[321799709,1712527837774,-937.04,0.000203,2]
[321799711,1712527837783,-169.55,0.00020312,2]
[321799713,1712527837793,-150.0,0.000205,2]
[321799715,1712527837802,-555.0,0.00020548,2]
[321799717,1712527837812,-5989.60431857,0.00020782,2]
[321799719,1712527837821,-196.25301469,0.0002079,2]
[321799721,1712527837831,-1173.66924,0.0002079,2]
[321799723,1712527837840,-3817.2553,0.00020799,2]
[321799725,1712527837850,-209.4196,0.00020799,2]
[321799727,1712527837859,-2052.0134,0.00020799,2]
[321799729,1712527837869,-433.5946,0.00020799,2]
[321799731,1712527837878,-1738.10778034,0.00020799,2]
[321799733,1712527837889,-1738.10778032,0.0002081,2]
[321799735,1712527837899,-1738.10778032,0.00020821,2]
[321799737,1712527837909,-1738.10778032,0.00020833,2]
[321799739,1712527837918,-1738.10778032,0.00020844,2]
[321799742,1712527837927,-1738.10778032,0.00020855,2]
[321799744,1712527837936,-1738.10778032,0.00020866,2]
[321799745,1712527837945,-1738.10778032,0.00020878,2]
[321799747,1712527837954,-1738.10778032,0.00020889,2]
[321799749,1712527837963,-36113.2183,0.00020899,2]
[321799751,1712527837974,-245000.0,0.00020899,2]
[321799753,1712527837983,-2500.0,0.00020899,2]
[321799755,1712527837992,-157.14756917,0.00020899,2]
[321799757,1712527838001,-12687.872264,0.000209,2]
[321799760,1712527838011,-1738.10778032,0.000209,2]
[321799762,1712527838020,-496.79253696,0.000209,2]
[321799764,1712527838029,-357.05314174,0.000209,2]
[321799766,1712527838038,-6130.82909261,0.000209,2]
[321799768,1712527838048,-157.14756917,0.000209,2]
[321799770,1712527838057,-157.040807,0.00020908,2]
[321799772,1712527838068,-157.040807,0.00020908,2]
[321799774,1712527838077,-157.040807,0.00020908,2]
[321799776,1712527838087,-157.040807,0.00020908,2]
[321799778,1712527838096,-157.040807,0.00020908,2]
[321799780,1712527838106,-157.040807,0.00020908,2]
[321799782,1712527838116,-157.040807,0.00020908,2]
[321799784,1712527838125,-157.040807,0.00020908,2]
[321799786,1712527838134,-157.040807,0.00020908,2]
[321799788,1712527838143,-157.040807,0.00020908,2]
[321799790,1712527838152,-157.040807,0.00020908,2]
[321799792,1712527838161,-157.040807,0.00020908,2]
[321799795,1712527838171,-157.040807,0.00020908,2]
[321799797,1712527838180,-157.040807,0.00020908,2]
[321799799,1712527838191,-2640.36787283,0.00020997,2]
[321799801,1712527838200,-930.04816714,0.00020997,2]
[321799803,1712527838210,-193.5704026,0.00020997,2]
[321799805,1712527838219,-10080.98325418,0.00020997,2]
[321799807,1712527838228,-18915.05826116,0.00020998,2]
[321799808,1712527838238,-1090.95005793,0.00020998,2]
[321799809,1712527838247,-67367.94734983,0.00020999,2]
[321799810,1712527838256,-1720.42353833,0.00020999,2]
[321799811,1712527838264,-4949.89933655,0.00020999,2]
[321799813,1712527838274,-1437.35192762,0.00020999,2]
[321799815,1712527838283,-646761.90184925,0.00020999,2]
[321799816,1712527838292,-2000.0,0.00020999,2]
[321799817,1712527838301,-200.0,0.00020999,2]
[321799818,1712527838310,-2000.0,0.00020999,2]
[321799819,1712527838320,-200.0,0.00020999,2]
[321799820,1712527838329,-2000.0,0.00020999,2]
[321799821,1712527838338,-200.0,0.00020999,2]
[321799822,1712527838347,-8704.5362671,0.00020999,5]
[321799823,1712527838357,-279407.57955557,0.00021,2]
[321799824,1712527838367,-545.68174296,0.00021,2]
[321799825,1712527838377,-3702.769,0.00021,2]
[321799826,1712527838386,-6624369.79236447,0.00021,2]
[321799827,1712527838395,-500.0,0.00021,2]
[321799828,1712527838404,-500.0,0.00021,2]
[321799829,1712527838413,-500.0,0.00021,2]
[321799830,1712527838422,-500.0,0.00021,2]
[321799831,1712527838431,-500.0,0.00021,2]
[321799832,1712527838440,-500.0,0.00021,2]
[321799833,1712527838449,-500.0,0.00021,2]
[321799834,1712527838458,-200.0,0.00021,2]
[321799835,1712527838467,-500.0,0.00021,2]
[321799836,1712527838476,-200.0,0.00021,2]
[321799837,1712527838485,-500.0,0.00021,2]
[321799838,1712527838494,-500.0,0.00021,2]
[321799839,1712527838503,-500.0,0.00021,2]
[321799840,1712527838513,-200.0,0.00021,2]
[321799841,1712527838522,-500.0,0.00021,2]
[321799842,1712527838531,-200.0,0.00021,2]
[321799843,1712527838541,-500.0,0.00021,2]
[321799844,1712527838550,-500.0,0.00021,2]
[321799845,1712527838559,-500.0,0.00021,2]
[321799846,1712527838569,-200.0,0.00021,2]
[321799847,1712527838578,-500.0,0.00021,2]
[321799848,1712527838587,-200.0,0.00021,2]
[321799849,1712527838599,-500.0,0.00021,2]
[321799850,1712527838608,-500.0,0.00021,2]
[321799851,1712527838618,-200.0,0.00021,2]
[321799852,1712527838628,-770.0,0.00021,2]
[321799853,1712527838637,-500.0,0.00021,2]
[321799854,1712527838646,-500.0,0.00021,2]
[321799855,1712527838655,-200.0,0.00021,2]
[321799856,1712527838664,-500.0,0.00021,2]
[321799858,1712527838673,-500.0,0.00021,2]
[321799860,1712527838682,-200.0,0.00021,2]
[321799861,1712527838691,-500.0,0.00021,2]
[321799863,1712527838701,-500.0,0.00021,2]
[321799865,1712527838710,-200.0,0.00021,2]
[321799867,1712527838719,-500.0,0.00021,2]
[321799869,1712527838728,-200.0,0.00021,2]
[321799871,1712527838737,-500.0,0.00021,2]
[321799872,1712527838746,-554.0,0.00021,2]
[321799874,1712527838757,-200.0,0.00021,2]
[321799876,1712527838766,-500.0,0.00021,2]
[321799878,1712527838775,-500.0,0.00021,2]
[321799880,1712527838784,-200.0,0.00021,2]
[321799882,1712527838793,-500.0,0.00021,2]
[321799884,1712527838802,-369.0,0.00021,2]
[321799885,1712527838811,-500.0,0.00021,2]
[321799887,1712527838820,-500.0,0.00021,2]
[321799889,1712527838829,-500.0,0.00021,2]
[321799891,1712527838838,-500.0,0.00021,2]
[321799893,1712527838847,-753.0,0.00021,2]
[321799895,1712527838856,-186.26915594,0.00021,2]
[321799896,1712527838865,-2875.86637624,0.00021,2]
[321799898,1712527838874,-3733651.42841646,0.00021,2]
[321799901,1712527838887,-18318417.0586323,0.00021,2]
[321799903,1712527838904,-480648.39856715,0.00021,2]
[321799917,1712527839639,-1960.06405333,0.00021,2]
[321799918,1712527839651,-1343.06439951,0.00021,2]
[321799919,1712527839758,-1062.32341229,0.00021,2]
[321799920,1712527839796,-689.0,0.00021,2]
[321799921,1712527839807,-7782.89648188,0.00021,2]
[321799922,1712527840331,-258.11,0.00021,2]
[321799923,1712527842098,-2e-08,0.00021,2]
[321799951,1712527842939,-2789.78893585,0.00021,2]
[321800018,1712527845714,-196.77842658,0.000209,2]
[321800019,1712527845725,-110.33837342,0.00021,2]
[321800020,1712527845738,-380.02125336,0.00021,2]
[321800021,1712527846229,-207.19896913,0.00021,2]
[321800022,1712527846389,-0.04105516,0.00021,2]
[321800023,1712527943733,43514.40518186,0.000209,28]
[321800024,1712527952670,370.35,0.0001799,2]
[321800025,1712527980723,3849.21667393,0.0003,28]
[321800031,1712528452163,379.59,0.00017802,2]
[321800032,1712528528314,1133.12028447,0.00017802,2]
[321800033,1712528543010,1133.12028447,0.00017802,2]
[321800034,1712528549260,24624.97877041,0.00017802,2]
[321800035,1712528565221,22831.60191884,0.00017802,2]
[321800036,1712528756770,5400.0,0.0001,2]
[321800037,1712528846151,1385.93,0.00017859,2]
[321800038,1712528852937,6000.0,0.0003,30]
[321800040,1712528893784,2718.26,0.00017766,2]
[321800042,1712528948137,-400.0,0.00018004,2]
[321800043,1712528948156,-155.0,0.00018004,2]
[321800044,1712528948180,-155.0,0.00018004,2]
[321800045,1712528948200,-486.03849486,0.00018004,2]
[321800046,1712528948221,-199.78642941,0.00018005,2]
[321800047,1712528948241,-1210.82205052,0.00018005,2]
[321800048,1712528948262,-620.31159771,0.00018005,2]
[321800049,1712528948288,-236.12584247,0.00018005,2]
[321800050,1712528948310,-269.15452375,0.00018005,2]
[321800051,1712528948330,-704.64333317,0.00018005,2]
[321800052,1712528948350,-407.38638937,0.00018005,2]
[321800053,1712528948370,-616.22742246,0.00018005,2]
[321800054,1712528948390,-278.34132937,0.00018005,2]
[321800055,1712528948409,-200.0,0.00018005,2]
[321800056,1712528948429,-215.47501592,0.00018006,2]
[321800057,1712528948448,-408.01157914,0.00018006,2]
[321800058,1712528948470,-155.0,0.00018006,2]
[321800059,1712528948493,-155.0,0.00018006,2]
[321800060,1712528948514,-205.88907818,0.00018006,2]
[321800061,1712528948534,-500.0,0.00018006,2]
[321800062,1712528948552,-809.08158788,0.00018007,2]
[321800063,1712528948574,-217.49949462,0.00018007,2]
[321800064,1712528948597,-156.83389544,0.00018007,2]
[321800065,1712528948619,-35165.94748153,0.00018007,2]
[321800066,1712528948637,-404.64904751,0.00018008,2]
[321800067,1712528948657,-155.0,0.00018008,2]
[321800068,1712528948678,-193.8903618,0.00018008,2]
[321800069,1712528948699,-155.0,0.00018008,2]
[321800070,1712528948718,-161.06954375,0.00018008,2]
[321800071,1712528948738,-201.79903001,0.00018008,2]
[321800072,1712528948759,-3074.28595733,0.00018008,2]
[321800073,1712528948780,-4716.5472582,0.00018008,2]
[321800074,1712528948800,-155.0,0.00018008,2]
[321800075,1712528948823,-155.0,0.00018009,2]
[321800076,1712528948844,-164.08625314,0.00018009,2]
[321800077,1712528948865,-166.91997935,0.00018009,2]
[321800078,1712528948887,-5375.52133588,0.00018009,2]
[321800079,1712528948907,-4571.54577774,0.00018009,2]
[321800080,1712528948929,-4465.75619085,0.00018009,2]
[321800081,1712528948949,-1057.96708886,0.00018009,2]
[321800082,1712528948968,-779.36919387,0.0001801,2]
[321800083,1712528948987,-266.7377988,0.0001801,2]
[321800084,1712528949006,-662.07520958,0.0001801,2]
[321800085,1712528949025,-1296.06527448,0.0001801,2]
[321800086,1712528949044,-362.27924693,0.0001801,2]
[321800087,1712528949065,-10544.41495387,0.0001801,2]
[321800088,1712528949084,-23293.53805988,0.0001801,2]
[321800089,1712528949104,-155.0,0.00018011,2]
[321800090,1712528949126,-155.0,0.00018011,2]
[321800091,1712528949145,-155.0,0.00018011,2]
[321800092,1712528949165,-155.0,0.00018011,2]
[321800093,1712528949184,-682.38593014,0.00018011,2]
[321800094,1712528949204,-22753.64962513,0.00018011,2]
[321800095,1712528949225,-2353.80413367,0.00018011,2]
[321800096,1712528949244,-2349.47845723,0.00018011,2]
[321800097,1712528949265,-550.63356813,0.00018011,2]
[321800098,1712528949285,-6285.85789335,0.00018012,2]
[321800099,1712528949306,-173.81923955,0.00018097,2]
[321800100,1712528949327,-5532.00830868,0.00018098,2]
[321800101,1712528949350,-155.0,0.00018098,2]
[321800102,1712528949370,-165.71746394,0.00018098,2]
[321800103,1712528949390,-1968.79710509,0.00018098,2]
[321800104,1712528949409,-155.0,0.00018098,2]
[321800105,1712528949430,-536.60711953,0.00018098,2]
[321800106,1712528949450,-342.43500003,0.00018098,2]
[321800107,1712528949470,-206.23207189,0.00018098,2]
[321800108,1712528949489,-522.63989634,0.00018098,2]
[321800109,1712528949510,-10266.45647019,0.00018098,2]
[321800110,1712528949532,-3374.18597777,0.00018099,2]
[321800111,1712528949553,-12437.30863171,0.00018107,2]
[321800112,1712528951232,-3633.9781,0.00018004,2]
[321800113,1712528952112,-677.8004482,0.00018004,2]
[321800114,1712528952132,-180.68788228,0.00018004,2]
[321800115,1712528952154,-155.0,0.00018004,2]
[321800116,1712528952173,-155.0,0.00018004,2]
[321800117,1712528952194,-155.0,0.00018004,2]
[321800118,1712528952217,-342.43500003,0.00018004,2]
[321800119,1712528952238,-1968.79710509,0.00018004,2]
[321800120,1712528952262,-55609.69479448,0.00018107,2]
[321800121,1712528960100,-1207.79912396,0.00018106,2]
[321800122,1712528960121,-248.4455,0.00018106,2]
[321800123,1712528960143,-366.55014285,0.00018106,2]
[321800124,1712528960162,-550.63356813,0.00018106,2]
[321800125,1712528960184,-155.0,0.00018106,2]
[321800126,1712528960205,-324.12333417,0.00018106,2]
[321800127,1712528960225,-160.92862965,0.00018106,2]
[321800128,1712528960246,-52005.31995839,0.00018107,2]
[321800129,1712528968569,22753.64962513,0.00017924,2]
[321800130,1712528970101,-6933.9838,0.000181,2]
[321800131,1712528986196,413.32,0.00016533,2]
[321800132,1712528986561,22753.64962513,0.00017924,2]
[321800133,1712529004758,299.88006602,0.00017924,2]
[321800139,1712529032115,-201.79903001,0.00018007,2]
[321800140,1712529032124,-389.96389093,0.00018008,2]
[321800141,1712529032133,-178.06060962,0.00018008,2]
[321800142,1712529032143,-300.0,0.00018099,2]
[321800143,1712529032152,-150.0,0.00018099,2]
[321800144,1712529032161,-150.0,0.00018099,2]
[321800145,1712529032170,-4490.12871366,0.000181,2]
[321800146,1712529032181,-1852.5111262,0.000181,2]
[321800315,1712529038338,-59807.06733424,0.000181,2]
[321800317,1712529038350,-205.70360312,0.00018105,2]
[321800319,1712529038360,-4708.46776626,0.00018105,2]
[321800321,1712529038369,-3074.28595733,0.00018105,2]
[321800323,1712529038380,-23293.53805988,0.00018105,2]
[321800325,1712529038389,-241.93395785,0.00018105,2]
[321800327,1712529038399,-809.08158788,0.00018105,2]
[321800329,1712529038408,-1296.06527448,0.00018105,2]
[321800331,1712529038417,-180.68788228,0.00018105,2]
[321800333,1712529038427,-278.34132937,0.00018105,2]
[321800335,1712529038436,-155.0,0.00018105,2]
[321800337,1712529038445,-407.38638937,0.00018105,2]
[321800339,1712529038454,-500.0,0.00018105,2]
[321800341,1712529038463,-155.0,0.00018105,2]
[321800343,1712529038472,-259.73214105,0.00018105,2]
[321800345,1712529038482,-155.0,0.00018105,2]
[321800347,1712529038491,-1055.78780899,0.00018105,2]
[321800349,1712529038501,-166.91997935,0.00018105,2]
[321800351,1712529038511,-266.7377988,0.00018105,2]
[321800353,1712529038521,-362.27924693,0.00018105,2]
[321800355,1712529038530,-662.07520958,0.00018105,2]
[321800357,1712529038539,-156.86509409,0.00018105,2]
[321800359,1712529038549,-155.0,0.00018105,2]
[321800361,1712529038559,-522.63989634,0.00018105,2]
[321800363,1712529038568,-486.03849486,0.00018105,2]
[321800365,1712529038578,-199.36069938,0.00018105,2]
[321800367,1712529038587,-505.48594203,0.00018105,2]
[321800369,1712529038597,-200.0,0.00018105,2]
[321800371,1712529038606,-620.31159771,0.00018105,2]
[321800373,1712529038616,-155.0,0.00018105,2]
[321800375,1712529038626,-221.79889178,0.00018105,2]
[321800378,1712529038636,-616.22742246,0.00018105,2]
[321800380,1712529038646,-193.8903618,0.00018105,2]
[321800382,1712529038656,-3374.18597777,0.00018105,2]
[321800384,1712529038665,-4311.7785482,0.00018105,2]
[321800386,1712529038674,-2440.77506136,0.00018105,2]
[321800388,1712529038684,-269.15452375,0.00018105,2]
[321800390,1712529038692,-314.95345249,0.00018105,2]
[321800392,1712529038702,-155.0,0.00018105,2]
[321800394,1712529038711,-678.53987833,0.00018105,2]
[321800396,1712529038720,-778.75719943,0.00018105,2]
[321800398,1712529038730,-308.09570942,0.00018105,2]
[321800400,1712529038741,-157.13236903,0.00018105,2]
[321800402,1712529038750,-550.63356813,0.00018105,2]
[321800404,1712529038759,-215.8646766,0.00018105,2]
[321800406,1712529038770,-440.51768814,0.00018105,2]
[321800408,1712529038778,-546.65495573,0.00018106,2]
[321800410,1712529038789,-164.08625314,0.00018106,2]
[321800412,1712529038798,-7958.86634311,0.00018106,2]
[321800414,1712529038807,-268.14558605,0.00018106,2]
[321800416,1712529038816,-21700.12217746,0.00018106,2]
[321800418,1712529038825,-800.39510704,0.00018106,2]
[321800420,1712529038835,-2236.42642197,0.00018106,2]
[321800422,1712529038844,-155.0,0.00018106,2]
[321800424,1712529038853,-404.64904751,0.00018106,2]
[321800426,1712529038862,-2350.41451908,0.00018106,2]
[321800428,1712529038871,-4462.39260183,0.00018106,2]
[321800430,1712529038883,-5375.52133588,0.00018107,2]
[321800432,1712529038892,-5532.00830868,0.00018107,2]
[321800434,1712529038902,-156.83389544,0.00018107,2]
[321800436,1712529038911,-400.0,0.00018107,2]
[321800438,1712529038920,-60279.78075955,0.00018108,2]
[321800440,1712529038929,-499.99,0.00018113,2]
[321800442,1712529038938,-800.0,0.00018121,2]
[321800444,1712529038947,-6285.85789327,0.00018333,2]
[321800446,1712529038956,-1740.3,0.00018392,2]
[321800448,1712529038965,-2630.64,0.00018406,2]
[321800450,1712529038975,-678.54,0.00018591,2]
[321800452,1712529038984,-6285.85789327,0.00018654,2]
[321800454,1712529038992,-2373.70186996,0.000187,2]
[321800456,1712529039002,-184.47,0.00018722,2]
[321800458,1712529039010,-10000.0,0.00018722,2]
[321800460,1712529039020,-500.0,0.00018736,2]
[321800462,1712529039029,-413.32,0.00018797,2]
[321800463,1712529039039,-1000.0,0.00018916,2]
[321800465,1712529039048,-183.63,0.00018949,2]
[321800467,1712529039057,-6285.85789327,0.00018975,2]
[321800469,1712529039067,-1750.0,0.00019,3]
[321800471,1712529039076,-786.71,0.00019056,2]
[321800474,1712529039086,-500.0,0.00019178,2]
[321800476,1712529039099,-565.69761233,0.00019178,2]
[321800478,1712529039109,-500.0,0.00019178,2]
[321800480,1712529039118,-457.5948105,0.00019178,2]
[321800482,1712529039127,-528.47854413,0.00019178,2]
[321800484,1712529039137,-201.10317061,0.00019178,2]
[321800486,1712529039147,-6758.38,0.00019178,2]
[321800488,1712529039157,-8553.01,0.00019178,2]
[321800490,1712529039166,-167.38,0.0001918,2]
[321800492,1712529039175,-3860.3242363,0.000192,2]
[321800494,1712529039185,-175.61,0.00019214,2]
[321800496,1712529039194,-505.78,0.00019221,2]
[321800498,1712529039204,-200.0,0.00019236,2]
[321800500,1712529039213,-505.78,0.00019273,2]
[321800502,1712529039222,-6285.85789327,0.00019296,2]
[321800504,1712529039232,-505.78,0.00019326,2]
[321800505,1712529039241,-505.78,0.00019379,2]
[321800506,1712529039250,-505.78,0.00019431,2]
[321800507,1712529039259,-505.78,0.00019484,2]
[321800509,1712529039270,-10578.97897767,0.0001949,2]
[321800511,1712529039280,-505.78,0.00019537,2]
[321800513,1712529039293,-505.78,0.0001959,2]
[321800515,1712529039302,-6285.85789327,0.00019616,2]
[321800517,1712529039312,-505.78,0.00019642,2]
[321800519,1712529039322,-10578.97897765,0.00019647,2]
[321800521,1712529039331,-505.78,0.00019695,2]
[321800523,1712529039341,-449.14958006,0.00019739,2]
[321800525,1712529039350,-505.78,0.00019748,2]
[321800527,1712529039360,-505.78,0.000198,2]
[321800529,1712529039370,-10578.97897765,0.00019803,2]
[321800531,1712529039380,-505.78,0.00019853,2]
[321800533,1712529039390,-179.36,0.00019894,2]
[321800535,1712529039400,-167.02,0.00019898,2]
[321800537,1712529039409,-193.30310907,0.000199,2]
[321800540,1712529039419,-505.78,0.00019906,2]
[321800542,1712529039428,-6285.85789327,0.00019937,2]
[321800544,1712529039439,-511.55591866,0.00019949,2]
[321800546,1712529039448,-505.78,0.00019959,2]
[321800547,1712529039458,-10578.97897765,0.0001996,2]
[321800548,1712529039468,-167.38,0.00019989,2]
[321800549,1712529039477,-167.38,0.00019989,2]
[321800550,1712529039486,-167.38,0.00019989,2]
[321800551,1712529039495,-167.38,0.0001999,2]
[321800552,1712529039505,-167.38,0.0001999,2]
[321800553,1712529039514,-167.38,0.0001999,2]
[321800554,1712529039524,-179.36,0.00019993,2]
[321800555,1712529039533,-781727.57119242,0.00019999,2]
[321800556,1712529039543,-1743.70839054,0.0002,2]
[321800557,1712529039552,-1762.27300257,0.0002,2]
[321800558,1712529039561,-1044.97705237,0.0002,2]
[321800559,1712529039571,-1672645.88138713,0.0002,2]
[321800560,1712529039580,-1005.68,0.0002,2]
[321800561,1712529039590,-22080.0,0.0002,2]